Workbook

Sheet Instructions
A2: INSTRUCTIONS FOR LIQUIDATED DAMAGES WORKSHEET
A3: SAVE THIS WORKBOOK TO YOUR COMPUTER FOR THE CALCULATIONS TO FUNCTION CORRECTLY. Liquidated Damages are calculated for each Local Agency Design-Bid-Build project for failure to complete the physical work within the allotted contract time. The Local Agency Engineer is responsible for completing the Design Liquidated Damages Calculation Sheet to determine the liquidated damages (LD) amount, which will be used in a fill-in for Special Provision APWA 1-08.9 Option A. The Local Agency or consultant should calculate construction engineering costs near the 90% milestone to fill out this form. Workforce projections must be ascertained for estimating construction staffing during the project. Since workforce will fluctuate through the project life, select a representative point near the end of the project for populating the Local Agency Personnel section of this form. Document the workforce assumptions in the Comments/Assumptions/Staffing Notes section at the bottom of this form. Hints will pop-up when you hover over column titles in the worksheet to assist you in completing this form.
A16: Calculations are intended to capture labor charges for the project staff, such as Engineers, Inspectors, testers, administration staff, etc who bill directly to the projects. There is an Overhead section below that will address indirect charges such as support office staff, vehicles, office administration staff, redistributed costs, office overhead, office equipment, rent, etc. Local Agencies ICR rates must be compliant with 2CFR 200 and be federally approved. Local Agencies that do not have a federally approved ICR may utilize the 10% De minimis rate allowed under 2 CFR 200. If the project will be using consultant support include the position(s) in the Consultant Personnel section, including wage rates from the consultant agreement.
A28: In the left column (under Local Agency Personnel) insert the personnel that will be directly charging time to the project. In the next column to the right, add a description of the work that person will be doing, i.e. Electrical Inspector, Roadway Inspector, Structure Inspector, Materials Tester, etc. As you fill in the next five columns (Each, Hrs/Day & OverTime Hrs, the Hourly Rate, and the Hourly Fringe Benefit Rate), the worksheet will automatically fill in, OT Rate and Daily Cost for each employee. The Hourly Rate is the unweighted rate. OT Rate is straight rate times 1.5, and does not include benefits. If the project will be using consultants during the duration of the project, use the project-specific consultant agreement to obtain the wage rates. If a consultant has been hired an has an established ICR rate replace the safe harbor rate of 110% with the actual ICR.
A38: Overhead
A40: “Subtotal” is the summation of labor. “Subtotal including Overhead” is the Subtotal plus a factor of 10% or the Local Agency's approved federal Indirect Cost Rate (ICR). Local Agencies ICR rates must be compliant with 2CFR 200 and be federally approved. Local Agencies that do not have a federally approved ICR may utilize the 10% De minimis rate allowed under 2 CFR 200.
A47: Calculated Liquidated Damages
A50: The total calculation of daily liquidated damages will be rounded to the nearest $50. Use this amount for the fill-in blank in Special Provision APWA GSP 1-08.9 Option A. For Local Agencies with full CA, the Local Agency Project Engineer must sign and date this form. For Local Agencies without a CA or with restricted CA status, the Local Agency authority must sign and date this worksheet.
A56: Comments/Assumptions/Staffing Notes
A58: All assumptions regarding the completion of this form should be captured in this note box at the end of the form. The Approved Project Liquidated Damages Calculation Sheet must be kept in the Project File documentation.

Sheet Liquidated Damages
A1: Local Agency Liquidated Damages Calculation - (Project-by-Project)
B3: SR | D3: MP | J3: Federal Aid #
B5: Project Title
B8: Liquidated Damages for Failure to Complete the Work or Portions of the Work On Time
B9: List personnel that will activey be working on the project "only"
B10: Local Agency Personnel | C10: Project Assignment | D10: Column1 | E10: Column2 | F10: Each | G10: Hrs/Day | H10: OverTime Hrs | I10: Unweighted Hourly Wage Rate | J10: Hourly Fringe Benefits Rate | K10: OT Rate | L10: Daily Cost
K11: =I11*1.5 -> 0 | L11: =IFERROR(((((G11*I11)*F11)+(K11*H11)*F11)+((G11+H11)*J11)),"--") -> 0
K12: 0 | L12: 0
K13: 0 | L13: 0
K14: 0 | L14: 0
K15: 0 | L15: 0
K16: 0 | L16: 0
K17: 0 | L17: 0
K18: 0 | L18: 0
K19: 0 | L19: 0
K20: 0 | L20: 0
K21: 0 | L21: 0
K22: 0 | L22: 0
K23: 0 | L23: 0
K24: 0 | L24: 0
K25: 0 | L25: 0
K26: 0 | L26: 0
B28: Administrative staff and personnel are included under the project overhead calculation and cannot be included in above calculation.
B29: Subtotal | L29: =SUM(L11:L26) -> 0
B30: Subtotal including Agency Federal Approved overhead rate | H30: → | I30: 0.1 | J30: for this project | L30: =L29+I32 -> 0
I31: =L29*I30 -> 0
I32: =I30*L29 -> 0
B33: Consultant CN Personnel | F33: Project Assignment | H33: Each | I33: Hrs/Day | J33: Unweighted Hourly Wage Rate | K33: Hourly Fringe Benefits Rate | L33: Daily Cost
L34: =IFERROR(((I34*J34)+(I34*K34)),"--") -> 0
L35: =IFERROR(((I35*J35)+(I35*K35)),"--") -> 0
L36: 0
L37: 0
L38: 0
B40: Subtotal | L40: =SUM(L34:L38) -> 0
B41: Subtotal including Standard Safe Harbor overhead rate | H41: → | I41: 1.1 | J41: for this project | L41: =L40*I41 -> 0
C44: CALCULATED LIQUIDATED DAMAGES PER WORKING DAY = | L44: =L30+L41 -> 0
F45: Rounded to the nearest $50 → | L45: =MROUND(L44,50) -> 0
B47: This worksheet must be submitted to Region LPE as part of Division One approval package for every project. This file and approval must be in the project file as documentation for Liquidated Damages on all Federal-Aid projects.
B49: Use Special Provision | E49: APWA 1-08.9 Option A
B51: Insert Liquidated Damages, In the amount of $ | G51: =L45 -> 0 | J51: per working day
B53: Project Engineer
B57: Name | E57: Signature | J57: Date
B58: By signing I cerify that the above information provided is true and accurate.
A59: Comments / Assumptions / Staffing Notes:
B60: Reference: 23 CFR §635.127 – Agreement provisions regarding overruns in contract Time.

Sheet Example Form
A1: Local Agency Liquidated Damages Calculation - (Project-by-Project)
B3: SR or Street | C3: Alder | D3: MP | E3: 0.75 to 2.00 | J3: Federal Aid # | K3: HSIP-1234(001)
B5: Project Title | C5: 2023 County Safety Improvements
B8: Liquidated Damages for Failure to Complete the Work or Portions of the Work On Time
B9: List personnel that will activey be working on the project "only"
B10: Local Agency Personnel | C10: Project Assignment | D10: Column1 | E10: Column2 | F10: Each | G10: Hrs/Day | H10: OverTime Hrs | I10: Unweighted Hourly Wage Rate | J10: Hourly Fringe Benefits Rate | K10: OT Rate | L10: Daily Cost
B11: Engineer EIT | C11: Field Inspector | F11: 1 | G11: 2 | H11: 0 | I11: 65 | J11: 27.5 | K11: =I11*1.5 -> 97.5 | L11: =IFERROR(((((G11*I11)*F11)+(K11*H11)*F11)+((G11+H11)*J11)),"--") -> 185
B12: Engineer Tech | C12: Tester | F12: 1 | G12: 2 | H12: 0 | I12: 55 | J12: 24.75 | K12: 82.5 | L12: 159.5
F13: 1 | G13: 4 | H13: 0 | I13: 90 | J13: 32.5 | K13: 135 | L13: 490
K14: 0 | L14: 0
K15: 0 | L15: 0
K16: 0 | L16: 0
K17: 0 | L17: 0
K18: 0 | L18: 0
K19: 0 | L19: 0
K20: 0 | L20: 0
K21: 0 | L21: 0
K22: 0 | L22: 0
K23: 0 | L23: 0
K24: 0 | L24: 0
K25: 0 | L25: 0
K26: 0 | L26: 0
B28: Administrative staff and personnel are included under the project overhead calculation and cannot be included in above calculation.
B29: Subtotal | L29: =SUM(L11:L26) -> 834.5
B30: Subtotal including Agency Federal Approved overhead rate | H30: → | I30: 0.1 | J30: for this project | L30: =L29+I32 -> 917.95
I31: =L29*I30 -> 83.45
I32: =I30*L29 -> 83.45
B33: Consultant CN Personnel | F33: Project Assignment | H33: Each | I33: Hrs/Day | J33: Unweighted Hourly Wage Rate | K33: Hourly Fringe Benefits Rate | L33: Daily Cost
B34: Project Engineer | F34: Project Management | H34: 1 | I34: 4 | J34: 100 | K34: 39.5 | L34: =IFERROR(((I34*J34)+(I34*K34)),"--") -> 558
B35: Project Inspector | F35: Field Inspection | H35: 1 | I35: 10 | J35: 70 | K35: 34.75 | L35: =IFERROR(((I35*J35)+(I35*K35)),"--") -> 1047.5
L36: 0
L37: 0
L38: 0
B40: Subtotal | L40: =SUM(L34:L38) -> 1605.5
B41: Subtotal including Standard Safe Harbor overhead rate | H41: → | I41: 1.1 | J41: for this project | L41: =L40*1.1 -> 1766.05
C44: CALCULATED LIQUIDATED DAMAGES PER WORKING DAY = | L44: =L30+L41 -> 2684
F45: Rounded to the nearest $50 → | L45: =MROUND(L44,50) -> 2700
B47: This worksheet must be submitted to Region LPE as part of Division One approval package for every project. This file and approval must be in the project file as documentation for Liquidated Damages on all Federal-Aid projects.
B49: Use Special Provision | E49: APWA 1-08.9 Option A
B51: Insert Liquidated Damages, In the amount of $ | G51: =L45 -> 2700 | J51: per working day
B53: Project Engineer
B57: Name | E57: Signature | J57: Date
B58: By signing I cerify that the above information provided is true and accurate.
A59: Comments / Assumptions / Staffing Notes:
B60: Reference: 23 CFR §635.127 – Agreement provisions regarding overruns in contract Time.

Sheet Sheet1

Sheet DATA (hidden)
A1: Quantity | B1: Hours per day | C1: Position | D1: PLACE HOLDER | E1: 2020 Annual Step L | F1: Benefits | G1: 2020- Loaded Rate | H1: 2020- Regular Rate | I1: 2020- OT Rate | J1: 2021 Annual Step L | K1: Benefits | L1: 2021- Loaded Rate | M1: 2021- Regular Rate | N1: 2021- OT Rate
A2: 1 | B2: 1 | C2: TE-1 | E2: 70637.4 | F2: 29696.1588 | G2: 48.05 | H2: =E2/2088 -> 33.83017241 | I2: =H2*1.5 -> 50.74525862 | J2: 72756.522 | K2: 30185.76587 | L2: =(J2+K2)/2088 -> 49.30186201 | M2: =J2/2088 -> 34.84507759 | N2: =M2*1.5 -> 52.26761638
A3: 2 | B3: 2 | C3: TE-2 | E3: 77954.52 | F3: 31345.03284 | G3: 52.35 | H3: =E3/2088 -> 37.33454023 | I3: =H3*1.5 -> 56.00181034 | J3: 80293.1556 | K3: 31885.15365 | L3: =(J3+K3)/2088 -> 53.72524389 | M3: =J3/2088 -> 38.45457644 | N3: =M3*1.5 -> 57.68186466
A4: 3 | B4: 3 | C4: TE-3 | E4: 86062.68 | F4: 33173.12556 | G4: 57.11 | H4: 41.21775862 | I4: 61.82663793 | J4: 88644.5604 | K4: 33767.21453 | L4: 58.62632899 | M4: 42.45429138 | N4: 63.68143707
A5: 4 | B5: 4 | C5: TT-1 | E5: 49934.4 | F5: 25028.0598 | G5: 35.9 | H5: 23.91494253 | I5: 35.87241379 | J5: 51432.432 | K5: 25377.94934 | L5: 36.7865811 | M5: 24.6323908 | N5: 36.94858621
A6: 5 | B6: 5 | C6: TT-2 | E6: 62455.08 | F6: 27851.55036 | G6: 43.25 | H6: 29.91143678 | I6: 44.86715517 | J6: 64328.7324 | K6: 28285.11745 | L6: 44.35529207 | M6: 30.80877989 | N6: 46.21316983
A7: 6 | B7: 6 | C7: TT-3 | E7: 70637.4 | F7: 29696.1588 | G7: 48.05 | H7: 33.83017241 | I7: 50.74525862 | J7: 72756.522 | K7: 30185.76587 | L7: 49.30186201 | M7: 34.84507759 | N7: 52.26761638
A8: 7 | B8: 7 | C8: TE Intern | E8: 51244.56 | F8: 25322.88852 | G8: 36.67 | H8: 24.54241379 | I8: 36.81362069 | J8: 52781.8968 | K8: 25681.58225 | L8: 37.57829456 | M8: 25.27868621 | N8: 37.91802931
A9: 8 | B9: 8 | C9: PE -- TE-5 | E9: 104887 | F9: 37418 | G9: 68.15 | H9: 50.23323755 | I9: 0.001 | J9: 108034 | K9: 38138 | L9: 70.00574713 | M9: 51.74042146 | N9: 0.001
A10: 9 | B10: 9 | C10: APE -- TE-4 | E10: 95011 | F10: 35191 | G10: 62.36 | H10: 45.50335249 | I10: 0.001 | J10: 97862 | K10: 35846 | L10: 64.03639847 | M10: 46.86877395 | N10: 0.001
A11: 10 | B11: 10 | C11: Other
A12: 11 | B12: 0 | C12: Select a Job Class
A13: 12
A14: 13
A15: 14
A16: 15
A17: 16
A18: 17
A19: 18
A20: 19
A21: 20
A32: NOTE - THIS INFORMATION IS FROM WSDOT PAYROLL SITE: http://wwwi.wsdot.wa.gov/Budget/BudgetTools.htm
